bitfinex-derivatives/quotes_SOLF0:USTF0_20251026
["timestamp","ask_amount","ask_price","bid_price","bid_amount"]
[1761445747513,4.79639223,192.77,192.65,2.89]
[1761445747810,4.00255872,192.76,192.65,2.89]
[1761445748117,4.00255872,192.75,192.67,2.89]
[1761445748413,4.00255872,192.74,192.67,2.89]
[1761445748717,4.00259873,192.77,192.67,2.89]
[1761445748906,4.00259873,192.76,192.67,2.89]
[1761445749107,4.00259873,192.75,192.67,2.89]
[1761445749412,4.79639223,192.79,192.67,2.89]
[1761445749608,4.00199545,192.78,192.67,2.89]
[1761445749908,4.00199545,192.77,192.67,2.89]
[1761445750108,4.00199545,192.76,192.68,2.79]
[1761445750415,4.00199545,192.75,192.68,2.79]
[1761445750715,4.79639223,192.79,192.68,2.79]
[1761445750917,4.00157217,192.78,192.68,2.79]
[1761445751215,4.00157217,192.77,192.68,2.79]
[1761445751410,4.00157217,192.76,192.68,2.79]
[1761445751611,4.00157217,192.75,192.68,2.79]
[1761445751812,4.79639223,192.79,192.68,2.79]
[1761445752010,4.00160623,192.78,192.68,2.79]
[1761445752213,4.00160623,192.77,192.68,2.79]
[1761445752514,4.00160623,192.76,192.68,2.79]
[1761445752715,4.00160623,192.75,192.68,2.79]
[1761445752908,4.79639223,192.79,192.68,2.79]
[1761445753110,4.00131972,192.78,192.68,2.79]
[1761445753308,4.00131972,192.77,192.68,2.79]
[1761445753513,4.00131972,192.76,192.68,2.79]
[1761445753708,4.00131972,192.75,192.68,2.79]
[1761445753909,4.79639223,192.79,192.68,2.79]
[1761445754110,4.00093791,192.78,192.68,2.79]
[1761445754309,4.00093791,192.77,192.68,2.79]
[1761445754511,4.79639223,192.79,192.68,2.79]
[1761445754512,4.00093791,192.76,192.68,2.79]
[1761445754715,4.00093791,192.75,192.68,2.79]
[1761445754917,4.00093791,192.78,192.68,2.79]
[1761445755117,4.00093791,192.77,192.68,2.79]
[1761445755321,4.00093791,192.76,192.68,2.79]
[1761445755516,4.00093791,192.79,192.68,2.79]
[1761445755815,4.00093791,192.78,192.68,2.79]
[1761445756015,4.00093791,192.77,192.68,2.79]
[1761445756216,4.00093791,192.76,192.68,2.79]
[1761445756518,4.00093791,192.8,192.68,2.79]
[1761445756715,4.00093791,192.79,192.68,2.79]
[1761445756915,4.00093791,192.78,192.68,2.79]
[1761445757114,4.00093791,192.77,192.68,2.79]
[1761445757310,4.00093791,192.8,192.68,2.79]
[1761445757511,4.00093791,192.79,192.68,2.79]
[1761445757711,4.00093791,192.78,192.68,2.79]
[1761445758009,4.00093791,192.77,192.68,2.79]
[1761445758210,4.00093791,192.8,192.68,2.79]
[1761445758411,4.00093791,192.79,192.69,2.79]
[1761445758614,4.00093791,192.8,192.69,2.79]
[1761445758809,4.00093791,192.79,192.7,2.79]
[1761445759018,4.00093791,192.83,192.7,2.79]
[1761445759222,7.16690405,192.84,192.7,2.79]
[1761445759223,4.00093791,192.82,192.7,2.79]
[1761445759424,4.00093791,192.83,192.7,2.79]
[1761445759624,4.00093791,192.82,192.7,2.79]
[1761445759827,4.00093791,192.83,192.7,2.79]
[1761445761123,2.37051182,192.84,192.7,2.79]
[1761445761626,6.37144973,192.84,192.7,2.79]
[1761445761819,4.00093791,192.83,192.7,2.79]
[1761445762527,2.37051182,192.84,192.7,2.79]
[1761445762714,4.00093791,192.85,192.7,2.79]
[1761445762919,4.00093791,192.86,192.7,2.79]
[1761445763114,2.37051182,192.87,192.7,2.79]
[1761445763115,4.00093791,192.85,192.7,2.79]
[1761445763321,4.00093791,192.86,192.7,2.79]
[1761445763516,20.37187163,192.88,192.7,2.79]
[1761445763517,4.00093791,192.85,192.7,2.79]
[1761445763822,6.37144973,192.87,192.7,2.79]
[1761445764126,4.00093791,192.86,192.7,2.79]
[1761445764623,6.37144973,192.87,192.76,4.6684]
[1761445764828,4.00093791,192.86,192.77,2.79]
[1761445765127,4.00093791,192.89,192.77,2.79]
[1761445765826,6.37144973,192.9,192.77,2.79]
[1761445766019,4.00093791,192.89,192.77,2.79]
[1761445766219,2.37051182,192.9,192.77,2.79]
[1761445777326,4.00093791,192.91,192.76,2.37051182]
[1761445777525,4.00093791,192.91,192.77,2.79]
[1761445777727,4.00093791,192.92,192.77,2.79]
[1761445777926,3.2731536,192.93,192.77,2.79]
[1761445779039,3.2731536,192.93,192.79,4.6675]
[1761445779227,3.2731536,192.93,192.8,2.72]
[1761445781336,23.02585654,192.93,192.8,2.72]
[1761445781540,4.00093791,192.92,192.8,4.6672]
[1761445781735,4.00093791,192.92,192.81,2.72]
[1761445782628,2.37051182,192.93,192.81,2.72]
[1761445783241,6.37144973,192.93,192.81,2.72]
[1761445783535,4.00093791,192.92,192.81,2.72]
[1761445784138,2.37051182,192.93,192.81,2.72]
[1761445784337,6.37144973,192.93,192.81,2.72]
[1761445784540,4.00093791,192.92,192.81,2.72]
[1761445784740,2.37051182,192.93,192.81,2.72]
[1761445785036,6.37144973,192.93,192.81,2.72]
[1761445785238,4.00093791,192.92,192.81,2.72]
[1761445785441,2.37051182,192.93,192.81,2.72]
[1761445785742,6.37144973,192.93,192.81,2.72]
[1761445785937,4.00093791,192.92,192.81,2.72]
[1761445786238,2.37051182,192.93,192.81,2.72]
[1761445786439,6.37144973,192.93,192.81,2.72]
[1761445786738,4.79639223,192.99,192.82,2.37051182]
[1761445786938,9.59278447,193.04,192.86,2.72]
[1761445786939,4.3570815,193.0,192.86,2.72]
[1761445787143,4.79639223,193.02,192.89,2.72]
[1761445787144,3.97345547,193.01,192.89,2.72]
[1761445787335,4.79639223,193.02,192.88,2.37051182]
[1761445787336,3.97345547,193.0,192.91,2.72]
[1761445787639,3.97345547,193.01,192.91,2.72]
[1761445787946,3.97345547,193.02,192.91,2.72]
[1761445788444,2.37051182,193.03,192.91,2.72]
[1761445788637,3.97345547,193.03,192.91,2.72]
[1761445788834,3.97345547,193.04,192.91,2.72]
[1761445789030,3.97345547,193.03,192.91,2.72]
[1761445789235,3.97345547,193.04,192.92,2.72]
[1761445789541,7.16690405,193.06,192.92,2.72]
[1761445789542,3.97345547,193.03,192.92,2.72]
[1761445789735,3.97345547,193.05,192.92,2.72]
[1761445789936,3.97345547,193.04,192.92,2.72]
[1761445790140,3.97345547,193.03,192.92,2.72]
[1761445790343,3.97345547,193.04,192.92,2.72]
[1761445790542,3.97345547,193.03,192.92,2.72]
[1761445790740,3.97345547,193.05,192.92,2.72]
[1761445790942,3.97345547,193.04,192.92,2.72]
[1761445791139,3.97345547,193.03,192.92,2.72]
[1761445791343,3.97345547,193.05,192.92,2.72]
[1761445791540,3.97345547,193.04,192.92,2.72]
[1761445791744,3.97345547,193.03,192.92,2.72]
[1761445791944,3.97345547,193.05,192.92,2.72]
[1761445792240,3.97345547,193.04,192.92,2.72]
[1761445792445,3.97345547,193.03,192.92,2.72]
[1761445792645,3.97345547,193.05,192.92,2.72]
[1761445792945,3.97345547,193.04,192.92,2.72]
[1761445793147,3.97345547,193.03,192.92,2.72]
[1761445793348,3.97345547,193.05,192.92,2.72]
[1761445793548,3.97345547,193.04,192.92,2.72]
[1761445793748,3.97345547,193.03,192.92,2.72]
[1761445793949,3.97345547,193.05,192.92,2.72]
[1761445794250,3.97345547,193.04,192.92,2.72]
[1761445794444,3.97345547,193.03,192.92,2.72]
[1761445794645,3.97345547,193.05,192.92,2.72]
[1761445794842,3.97345547,193.04,192.92,2.72]
[1761445795144,3.97345547,193.03,192.92,2.72]
[1761445795347,3.97345547,193.05,192.92,2.72]
[1761445795547,3.97345547,193.04,192.92,2.72]
[1761445795748,3.97345547,193.03,192.92,2.72]
[1761445795947,3.97345547,193.05,192.92,2.72]
[1761445796148,3.97345547,193.04,192.92,2.72]
[1761445796446,3.97345547,193.03,192.92,2.72]
[1761445796750,1.51216904,193.01,192.92,2.72]
[1761445798740,5.48562451,193.01,192.92,2.72]
[1761445798943,1.51216904,193.01,192.92,2.72]
[1761445800556,1.51216904,192.98,192.92,2.72]
[1761445808358,1.51216904,193.02,192.94,2.64]
[1761445808665,5.26733902,193.05,192.94,2.64]
[1761445808859,3.75516998,193.04,192.94,2.64]
[1761445809066,1.51216904,193.05,192.95,2.64]
[1761445811265,5.26733902,193.05,192.95,2.64]
[1761445811470,3.75516998,193.04,192.95,2.64]
[1761445811656,1.51216904,193.05,192.95,2.64]
[1761445813662,1.51216904,193.02,192.95,2.64]
[1761445815269,1.51216904,192.99,192.95,2.64]
[1761445815468,3.75516998,193.03,192.89,2.64]
[1761445815469,1.51216904,192.97,192.89,2.64]
[1761445815668,1.51216904,192.93,192.89,2.64]
[1761445816472,1.51216904,192.91,192.82,2.64]
[1761445817772,1.51216904,192.91,192.83,4.72974546]
[1761445817970,1.51216904,192.91,192.85,2.64]
[1761445818169,1.51216904,192.91,192.87,2.64]
[1761445818369,1.51216904,192.91,192.88,4.72974546]
[1761445818677,1.51216904,192.91,192.89,4.72974546]
[1761445818876,1.51216904,192.91,192.9,4.72974546]
[1761445819465,1.51216904,192.94,192.9,7.36974546]
[1761445819671,1.51216904,192.94,192.91,4.72974546]
[1761445819976,1.51216904,192.94,192.92,4.72974546]
[1761445820171,1.51216904,192.94,192.93,4.72974546]
[1761445820575,5.42313982,192.94,192.93,4.72974546]
[1761445820771,1.51216904,193.0,192.94,2.64]
[1761445822078,5.42534153,193.0,192.94,2.64]
[1761445822277,3.91317249,192.99,192.94,2.64]
[1761445822666,1.51216904,193.0,192.94,2.64]
[1761445823572,5.42534153,193.0,192.94,2.64]
[1761445823776,3.91317249,192.99,192.94,2.64]
[1761445824177,1.51216904,193.0,192.94,2.64]
[1761445824577,5.42534153,193.0,192.94,2.64]
[1761445824776,3.91317249,192.99,192.94,2.64]
[1761445825077,1.51216904,193.0,192.94,2.64]
[1761445825274,3.91317249,193.01,192.94,2.64]
[1761445825477,1.51216904,193.03,192.94,2.64]
[1761445825478,3.91317249,193.02,192.94,2.64]
[1761445825678,1.51216904,193.03,192.94,2.64]
[1761445826184,5.42534153,193.03,192.94,2.64]
[1761445826486,3.91317249,193.02,192.94,2.64]
[1761445826783,1.51216904,193.03,192.94,2.64]
[1761445827180,5.42534153,193.03,192.94,2.64]
[1761445827478,3.91317249,193.02,192.94,2.64]
[1761445827879,1.51216904,193.03,192.94,2.64]
[1761445828077,3.91317249,193.02,192.94,2.64]
[1761445830187,3.91317249,193.01,192.94,2.64]
[1761445830485,1.51216904,193.03,192.94,2.64]
[1761445830486,3.91317249,193.02,192.94,2.64]
[1761445830688,3.91317249,193.01,192.94,2.64]
[1761445830888,3.91317249,193.02,192.94,2.64]
[1761445831089,3.91317249,193.01,192.94,2.64]
[1761445831290,3.91317249,193.0,192.95,2.64]
[1761445831592,3.91317249,193.04,192.95,2.64]
[1761445831782,3.91317249,193.03,192.95,2.64]
[1761445831983,3.91317249,193.02,192.95,2.64]
[1761445832184,3.91317249,193.01,192.95,2.64]
[1761445832384,3.91317249,193.0,192.95,2.64]
[1761445832687,3.91317249,193.04,192.95,2.64]
[1761445832890,3.91317249,193.03,192.95,2.64]
[1761445833083,3.91317249,193.02,192.95,2.64]
[1761445833288,3.91317249,193.01,192.95,2.64]
[1761445833488,3.91317249,193.0,192.95,2.64]
[1761445833693,3.91317249,192.99,192.95,2.64]
[1761445833897,6.30856127,193.03,192.95,2.64]
[1761445834095,1.51216904,193.01,192.95,2.64]
[1761445834302,4.07193196,193.0,192.95,2.64]
[1761445834592,4.07193196,192.99,192.95,2.64]
[1761445834792,4.07193196,192.98,192.95,2.64]
[1761445834987,4.07193196,192.97,192.95,2.64]
[1761445835192,6.30856127,193.01,192.92,2.64]
[1761445835389,8.86783051,193.0,192.92,2.64]
[1761445835583,4.07143828,192.99,192.92,2.64]
[1761445835783,4.07143828,192.98,192.92,2.64]
[1761445835989,4.07143828,192.97,192.92,2.64]
[1761445836196,4.07143828,192.96,192.92,2.64]
[1761445836497,4.07143828,192.95,192.92,2.64]
[1761445836698,1.51216904,192.99,192.92,2.64]
[1761445836994,4.0711262,192.98,192.92,2.64]
[1761445837295,4.0711262,192.97,192.92,2.64]
[1761445837594,4.0711262,192.96,192.92,2.64]
[1761445837791,4.0711262,192.95,192.92,2.64]
[1761445838098,4.0711262,192.94,192.92,2.64]
[1761445838396,1.51216904,192.97,192.92,2.64]
[1761445838597,4.07061462,192.96,192.92,2.64]
[1761445838897,4.07061462,192.95,192.92,2.64]
[1761445839093,4.07061462,192.94,192.92,2.64]
[1761445839298,4.07061462,192.93,192.92,2.64]
[1761445840091,6.10651061,192.97,192.92,2.64]
[1761445840390,4.07044475,192.96,192.92,2.64]
[1761445840597,4.07044475,192.95,192.92,2.64]
[1761445840792,4.07044475,192.94,192.92,2.64]
[1761445840993,1.51216904,192.97,192.92,2.64]
[1761445841189,4.0705798,192.96,192.92,2.64]
[1761445841389,4.0705798,192.95,192.92,2.64]
[1761445841591,4.0705798,192.94,192.92,2.64]
[1761445841794,6.10651788,192.97,192.92,2.64]
[1761445842098,4.07033,192.96,192.92,2.64]
[1761445842299,4.07033,192.95,192.92,2.64]
[1761445842494,4.07033,192.94,192.92,2.64]
[1761445842701,1.51216904,192.97,192.92,2.64]
[1761445842891,4.07032532,192.96,192.92,2.64]
[1761445843091,4.07032532,192.95,192.92,2.64]
[1761445843291,4.07032532,192.94,192.92,2.64]
[1761445843494,6.10619849,192.97,192.92,2.64]
[1761445843693,4.07035462,192.96,192.92,2.64]
[1761445843898,4.07035462,192.95,192.92,2.64]
[1761445844101,4.07035462,192.94,192.92,2.64]
[1761445844304,4.07035462,192.93,192.92,2.64]
[1761445844800,4.07037983,192.93,192.92,2.64]
[1761445844992,1.51216904,192.97,192.92,2.64]
[1761445845193,4.07039081,192.96,192.92,2.64]
[1761445845399,4.07039081,192.95,192.92,2.64]
[1761445845604,4.07039081,192.94,192.92,2.64]
[1761445845898,4.07039081,192.93,192.92,2.64]
[1761445852199,4.07039081,192.93,192.89,2.69]
[1761445852405,4.07039081,192.92,192.89,2.69]
[1761445852598,9.39049791,192.96,192.89,2.69]
[1761445852803,8.66410402,192.95,192.89,2.69]
[1761445852999,1.51216904,192.97,192.89,2.69]
[1761445853000,4.06999834,192.94,192.89,2.69]
[1761445853304,4.06999834,192.93,192.89,2.69]
[1761445853506,4.06999834,192.92,192.89,2.69]
[1761445853705,4.59400176,192.96,192.89,2.69]
[1761445853905,4.07000762,192.95,192.89,2.69]
[1761445854106,4.07000762,192.94,192.89,2.69]
[1761445854307,4.07000762,192.93,192.89,2.69]
[1761445854508,4.07000762,192.92,192.89,2.69]
[1761445854808,4.59400176,192.96,192.89,2.69]
[1761445855006,4.07021685,192.95,192.89,2.69]
[1761445855206,4.07021685,192.94,192.89,2.69]
[1761445855507,4.07021685,192.93,192.89,2.69]
[1761445855700,4.59400176,192.96,192.89,2.69]
[1761445855896,4.07067053,192.95,192.89,2.69]
[1761445856203,4.07067053,192.94,192.89,2.69]
[1761445856409,4.07067053,192.93,192.89,2.69]
[1761445856706,4.59400176,192.96,192.89,2.69]
[1761445856905,4.07097107,192.95,192.89,2.69]
[1761445857209,4.07097107,192.94,192.89,2.69]
[1761445857408,4.07097107,192.93,192.89,2.69]
[1761445857612,4.59400176,192.96,192.89,2.69]
[1761445857805,4.07101405,192.95,192.89,2.69]
[1761445858005,4.07101405,192.94,192.89,2.69]
[1761445858205,4.07101405,192.93,192.89,2.69]
[1761445858405,4.59400176,192.96,192.89,2.69]
[1761445858605,4.07121306,192.95,192.89,2.69]
[1761445858808,4.07121306,192.94,192.89,2.69]
[1761445859009,4.07121306,192.93,192.89,2.69]
[1761445859197,4.59400176,192.96,192.89,2.69]
[1761445859401,4.07054547,192.95,192.89,2.69]
[1761445859705,4.07054547,192.94,192.89,2.69]
[1761445859902,4.07054547,192.93,192.89,2.69]
[1761445860208,4.07014374,192.92,192.89,2.69]
[1761445860404,4.59400176,192.96,192.89,2.69]
[1761445860709,4.07009028,192.95,192.89,2.69]
[1761445861009,4.07009028,192.94,192.89,2.69]
[1761445861207,4.07009028,192.93,192.89,2.69]
[1761445861405,4.07009028,192.92,192.89,2.69]
[1761445861708,4.59400176,192.96,192.89,2.69]
[1761445861911,4.07064581,192.95,192.89,2.69]
[1761445862110,4.07064581,192.94,192.89,2.69]
[1761445862408,4.07064581,192.93,192.89,2.69]
[1761445862609,4.07064581,192.92,192.89,2.69]
[1761445862812,4.59400176,192.96,192.89,2.69]
[1761445863010,4.07119213,192.95,192.89,2.69]
[1761445863209,4.07119213,192.94,192.89,2.69]
[1761445863504,4.07119213,192.93,192.89,2.69]
[1761445863712,4.07119213,192.92,192.89,2.69]
[1761445863908,4.59400176,192.95,192.89,2.69]
[1761445863909,4.07119213,192.91,192.89,2.69]
[1761445864209,4.59400176,192.95,192.89,2.69]
[1761445864399,4.1376249,192.94,192.89,2.69]
[1761445864603,4.1376249,192.93,192.89,2.69]
[1761445864804,4.1376249,192.92,192.89,2.69]
[1761445865006,4.1376249,192.91,192.89,2.69]
[1761445865200,4.59400176,192.95,192.89,2.69]
[1761445865401,4.12013699,192.94,192.89,2.69]
[1761445865600,4.12013699,192.93,192.89,2.69]
[1761445865902,4.12013699,192.92,192.89,2.69]
[1761445866096,4.12013699,192.91,192.89,2.69]
[1761445866305,4.79639223,192.96,192.89,2.69]
[1761445866612,4.12000032,192.95,192.89,2.69]
[1761445866802,4.12000032,192.94,192.89,2.69]
[1761445867001,4.12000032,192.93,192.89,2.69]
[1761445867202,4.12000032,192.92,192.89,2.69]
[1761445867402,4.79639223,192.97,192.89,2.69]
[1761445867614,4.12043477,192.96,192.89,2.69]
[1761445867817,4.12043477,192.95,192.89,2.69]
[1761445868107,4.12043477,192.94,192.91,2.78]
[1761445868303,4.79639223,192.99,192.91,2.78]
[1761445868505,4.07610097,192.98,192.91,2.78]
[1761445868809,4.07610097,192.97,192.91,2.78]
[1761445869108,4.07610097,192.96,192.91,2.78]
[1761445869313,4.07610097,192.95,192.91,2.78]
[1761445869610,4.52101714,192.99,192.91,2.78]
[1761445869800,4.07608801,192.98,192.91,2.78]
[1761445870005,4.07608801,192.97,192.91,2.78]
[1761445870199,4.07608801,192.96,192.91,2.78]
[1761445870404,4.07608801,192.95,192.91,2.78]
[1761445870711,4.52101714,192.99,192.91,2.78]
[1761445870905,4.07618818,192.98,192.91,2.78]
[1761445871112,4.07618818,192.97,192.91,2.78]
[1761445871313,4.07618818,192.96,192.91,2.78]
[1761445871513,4.07618818,192.95,192.91,2.78]
[1761445871714,4.52101714,192.99,192.91,2.78]
[1761445871911,4.07656678,192.98,192.91,2.78]
[1761445872116,4.07656678,192.97,192.91,2.78]
[1761445872316,4.07656678,192.96,192.91,2.78]
[1761445872509,4.07656678,192.95,192.91,2.78]
[1761445872709,4.52101714,192.99,192.91,2.78]
[1761445872913,4.07712868,192.98,192.91,2.78]
[1761445873110,4.07712868,192.97,192.91,2.78]
[1761445873418,4.07712868,192.96,192.91,2.78]
[1761445873717,4.07712868,192.95,192.91,2.78]
[1761445873917,4.79639223,192.99,192.91,2.78]
[1761445874215,4.07759894,192.98,192.91,2.78]
[1761445874416,9.59278447,193.04,192.91,2.78]
[1761445874417,4.07759894,192.97,192.91,2.78]
[1761445874611,4.07759894,192.96,192.91,2.78]
[1761445874810,4.79639223,193.0,192.91,2.78]
[1761445875007,4.07723831,192.99,192.91,2.78]
[1761445875209,4.07723831,192.98,192.91,2.78]
[1761445875405,4.07723831,192.97,192.91,2.78]
[1761445875619,4.52145293,193.0,192.91,2.78]
[1761445875819,4.01858305,192.99,192.91,2.78]
[1761445876116,4.01858305,192.98,192.91,2.78]
[1761445876317,4.01858305,192.97,192.91,2.78]
[1761445876513,4.01858305,192.96,192.91,2.78]
[1761445876714,4.52145293,193.0,192.91,2.78]
[1761445876910,4.01908416,192.99,192.91,2.78]
[1761445877111,4.01908416,192.98,192.91,2.78]
[1761445877311,4.01908416,192.97,192.93,2.81]
[1761445877514,4.01908416,192.96,192.95,2.81]
[1761445877717,0.13279142,192.96,192.95,7.44350511]
[1761445878414,0.13279142,192.96,192.95,2.81]
[1761445878809,4.52145293,193.02,192.95,2.81]
[1761445879217,4.79639223,193.03,192.95,2.81]
[1761445879406,9.31784516,193.03,192.95,2.81]
[1761445879611,4.52145293,193.02,192.95,2.81]
[1761445880325,4.79639223,193.06,192.97,2.81]
[1761445881017,4.79639223,193.07,192.97,2.81]
[1761445881520,4.79639223,193.07,192.99,2.81]
[1761445881717,4.79639223,193.07,193.01,2.81]
[1761445881919,4.79639223,193.07,193.03,2.81]
[1761445882119,4.79639223,193.07,193.04,4.74980658]
[1761445882320,4.79639223,193.08,193.05,4.74980658]
[1761445882622,4.79639223,193.08,193.03,2.81]
[1761445883220,4.79639223,193.09,193.03,2.81]
[1761445884522,4.79639223,193.09,193.04,7.5529606]
[1761445884722,4.79639223,193.09,193.05,4.7429606]
[1761445884911,4.79639223,193.09,193.06,4.7429606]
[1761445885110,4.79639223,193.09,193.07,4.7429606]
[1761445885315,4.79639223,193.09,193.08,4.7429606]
[1761445885527,4.80409872,193.09,193.08,4.7429606]
[1761445885822,4.80409872,193.11,193.08,4.7429606]
[1761445886015,4.80409872,193.11,193.09,4.7429606]
[1761445886328,4.80409872,193.11,193.1,4.7429606]
[1761445888019,5.70579328,193.12,193.1,4.7429606]
[1761445888225,5.70579328,193.12,193.11,4.7429606]
[1761445889625,9.677985,193.12,193.11,4.7429606]
[1761445891328,9.677985,193.12,193.11,4.73241529]
[1761445892231,4.87388628,193.12,193.11,4.73241529]
[1761445893729,5.91388628,193.12,193.11,4.73241529]
[1761445896544,9.677985,193.12,193.01,2.81]
[1761445896742,2.36381533,193.1,193.01,2.81]
[1761445896933,3.97219172,193.09,193.01,2.81]
[1761445897834,3.97219172,193.1,193.01,2.81]
[1761445898034,3.97219172,193.11,193.01,2.81]
[1761445898243,3.97219172,193.1,193.01,2.81]
[1761445898435,3.97219172,193.11,193.01,2.81]
[1761445898635,3.97219172,193.1,193.01,2.81]
[1761445898940,3.97219172,193.11,193.01,2.81]
[1761445899141,3.97219172,193.1,193.01,2.81]
[1761445899332,3.97219172,193.11,193.01,2.81]
[1761445899534,3.97219172,193.1,193.01,2.81]
[1761445899739,3.97219172,193.11,193.01,2.81]
[1761445899942,3.97219172,193.1,193.01,2.81]
[1761445900239,3.97219172,193.11,193.01,2.81]
[1761445900439,3.97219172,193.1,193.01,2.81]
[1761445900642,3.97219172,193.11,193.01,2.81]
[1761445900846,3.97219172,193.1,193.01,2.81]
[1761445901140,3.97219172,193.09,193.01,2.81]
[1761445901327,3.97219172,193.08,193.01,2.81]
[1761445901531,3.97219172,193.09,193.01,2.81]
[1761445901732,3.97219172,193.08,193.01,2.81]
[1761445902035,2.36381533,193.08,193.01,2.81]
[1761445902337,6.33600705,193.08,193.01,2.81]
[1761445902533,3.97219172,193.07,193.01,2.81]
[1761445902738,2.36381533,193.08,193.01,2.81]
[1761445902940,6.33600705,193.08,193.01,2.81]
[1761445903140,3.97219172,193.07,193.01,2.81]
[1761445904445,3.97219172,193.06,193.01,2.81]
[1761445904644,3.97219172,193.07,193.01,2.81]
[1761445904848,3.97219172,193.06,193.01,2.81]
[1761445905144,3.97219172,193.07,193.01,2.81]
[1761445905346,3.97219172,193.06,193.01,2.81]
[1761445905547,3.97219172,193.07,193.01,2.81]
[1761445905747,3.97219172,193.06,193.01,2.81]
[1761445905949,3.97219172,193.07,193.01,2.81]
[1761445906247,3.97219172,193.06,193.01,2.81]
[1761445906546,3.97219172,193.07,193.01,2.81]
[1761445906736,3.97219172,193.06,193.01,2.81]
[1761445906941,3.97219172,193.07,193.01,2.81]
[1761445907138,3.97219172,193.06,193.01,2.81]
[1761445907345,3.97219172,193.07,193.01,2.81]
[1761445907541,3.97219172,193.06,193.01,2.81]
[1761445907747,3.97219172,193.07,193.01,2.81]
[1761445907945,3.97219172,193.06,193.01,2.81]
[1761445908146,3.97219172,193.07,193.01,2.81]
[1761445908446,3.97219172,193.06,193.01,2.81]
[1761445908647,3.97219172,193.05,193.02,7.29281749]
[1761445908944,3.97219172,193.07,193.04,2.65]
[1761445909149,3.97219172,193.06,193.05,4.64281749]
[1761445910850,3.97219172,193.06,193.05,7.29281749]
[1761445911053,3.97219172,193.07,193.06,2.65]
[1761445911240,3.97219172,193.1,193.07,2.65]
[1761445911552,3.97219172,193.09,193.08,7.29281749]
[1761445914053,3.97219172,193.09,193.08,4.64281749]
[1761445916357,8.77629044,193.09,193.08,4.64281749]
[1761445916750,10.2876673,193.09,193.08,4.64281749]
[1761445920357,5.48356858,193.09,193.08,4.64281749]
[1761445920662,5.48356858,193.09,193.05,2.65]
[1761445920863,8.78085799,193.08,193.05,2.65]
[1761445921062,3.97219172,193.07,193.05,2.65]
[1761445921264,3.97219172,193.06,193.05,2.65]
[1761445930269,1.51137686,193.1,193.05,2.65]
[1761445930569,3.97068649,193.09,193.05,2.65]
[1761445930765,3.97068649,193.08,193.05,2.65]
[1761445931065,3.97068649,193.07,193.05,2.65]
[1761445931265,1.51137686,193.1,193.05,2.65]
[1761445931470,3.97005133,193.09,193.05,2.65]
[1761445931764,3.97005133,193.08,193.05,2.65]
[1761445931966,3.97005133,193.07,193.05,2.65]
[1761445932161,1.51137686,193.1,193.05,2.65]
[1761445932466,3.97034801,193.09,193.05,2.65]
[1761445932669,3.97034801,193.08,193.05,2.65]
[1761445932967,3.97034801,193.07,193.05,2.65]
[1761445933264,1.51137686,193.1,193.05,2.65]
[1761445933454,3.96997382,193.09,193.05,2.65]
[1761445933660,3.96997382,193.08,193.05,2.65]
[1761445933860,3.96997382,193.07,193.05,2.65]
[1761445934061,1.51137686,193.1,193.05,2.65]
[1761445934261,3.96967589,193.09,193.05,2.65]
[1761445934569,3.96967589,193.08,193.05,2.65]
[1761445934867,3.96967589,193.07,193.05,2.65]
[1761445935056,4.80866627,193.12,193.05,2.65]
[1761445935259,3.96959978,193.11,193.05,2.65]
[1761445935461,4.80866627,193.12,193.05,2.65]
[1761445935462,3.96959978,193.1,193.05,2.65]